[Event "Titled Tuesday Blitz July 13 2021"]
[White "Mezentsev, Ivan"]
[Black "Nakamura, Hikaru"]
[WhiteFideId "13706195"]
[BlackFideId "2016192"]
[WhiteElo "2295"]
[BlackElo "2900"]
[Result "0-1"]
[Round "02"]
[TimeControl "180+1"]
[Date "2021.07.13"]
[WhiteClock "0:00:01"]
[BlackClock "0:00:45"]

1. d4 {[%clk 0:03:00]}  g6 {[%clk 0:02:57]} 2. Nf3 {[%clk 0:02:58]}  Bg7 {[%clk 0:02:57]} 3. Bf4 {[%clk 0:02:58]}  d6 {[%clk 0:02:57]} 4. e3 {[%clk 0:02:58]}  Nd7 {[%clk 0:02:58]} 5. h3 {[%clk 0:02:57]}  e5 {[%clk 0:02:58]} 6. Bh2 {[%clk 0:02:57]}  Ne7 {[%clk 0:02:59]} 7. Be2 {[%clk 0:02:56]}  O-O {[%clk 0:02:58]} 8. O-O {[%clk 0:02:56]}  Nc6 {[%clk 0:02:59]} 9. a4 {[%clk 0:02:47]}  Re8 {[%clk 0:02:57]} 10. Re1 {[%clk 0:02:45]}  a6 {[%clk 0:02:51]} 11. c3 {[%clk 0:02:43]}  h6 {[%clk 0:02:50]} 12. Bg3 {[%clk 0:02:31]}  f5 {[%clk 0:02:48]} 13. Bh4 {[%clk 0:02:24]}  Bf6 {[%clk 0:02:22]} 14. Bxf6 {[%clk 0:02:23]}  Qxf6 {[%clk 0:02:23]} 15. Na3 {[%clk 0:02:21]}  g5 {[%clk 0:02:20]} 16. Nd2 {[%clk 0:02:13]}  Nf8 {[%clk 0:02:15]} 17. b4 {[%clk 0:02:10]}  Ne7 {[%clk 0:02:11]} 18. Bh5 {[%clk 0:02:05]}  Neg6 {[%clk 0:02:10]} 19. a5 {[%clk 0:01:58]}  Be6 {[%clk 0:02:10]} 20. b5 {[%clk 0:01:57]}  Bf7 {[%clk 0:02:02]} 21. bxa6 {[%clk 0:01:46]}  Rxa6 {[%clk 0:02:02]} 22. Nb5 {[%clk 0:01:42]}  Re7 {[%clk 0:02:00]} 23. c4 {[%clk 0:01:32]}  c6 {[%clk 0:01:57]} 24. Nc3 {[%clk 0:01:29]}  exd4 {[%clk 0:01:56]} 25. exd4 {[%clk 0:01:29]}  Rxe1+ {[%clk 0:01:56]} 26. Qxe1 {[%clk 0:01:28]}  Qxd4 {[%clk 0:01:57]} 27. Ne2 {[%clk 0:01:16]}  Qf6 {[%clk 0:01:55]} 28. Ng3 {[%clk 0:01:12]}  b6 {[%clk 0:01:47]} 29. Qb1 {[%clk 0:01:01]}  Ne7 {[%clk 0:01:28]} 30. Bxf7+ {[%clk 0:00:59]}  Kxf7 {[%clk 0:01:29]} 31. Nh5 {[%clk 0:00:48]}  Qc3 {[%clk 0:01:27]} 32. Qe1 {[%clk 0:00:26]}  Rxa5 {[%clk 0:01:24]} 33. Rc1 {[%clk 0:00:25]}  Qe5 {[%clk 0:01:23]} 34. Qd1 {[%clk 0:00:20]}  Qd4 {[%clk 0:01:20]} 35. Qc2 {[%clk 0:00:18]}  Ra1 {[%clk 0:01:19]} 36. Nf3 {[%clk 0:00:17]}  Rxc1+ {[%clk 0:01:19]} 37. Qxc1 {[%clk 0:00:16]}  Qh8 {[%clk 0:01:17]} 38. Qd2 {[%clk 0:00:13]}  Qa1+ {[%clk 0:01:11]} 39. Kh2 {[%clk 0:00:11]}  d5 {[%clk 0:01:04]} 40. Qe3 {[%clk 0:00:10]}  Nfg6 {[%clk 0:01:01]} 41. Qxb6 {[%clk 0:00:09]}  g4 {[%clk 0:01:02]} 42. Nd4 {[%clk 0:00:04]}  Qe1 {[%clk 0:01:01]} 43. Nxc6 {[%clk 0:00:02]}  dxc4 {[%clk 0:00:47]} 44. Nd8+ {[%clk 0:00:02]}  Kg8 {[%clk 0:00:45]} 45. Qf6 {[%clk 0:00:01]}  Qe5+ {[%clk 0:00:44]} 46. Qxe5 {[%clk 0:00:01]}  Nxe5 {[%clk 0:00:45]} 0-1


[Site "https://www.chess.com"]

[Event "Titled Tuesday Blitz July 13 2021"]
[White "Onyshchuk, Volodymyr"]
[Black "Madaminov, Mukhiddin"]
[WhiteFideId "14114038"]
[BlackFideId "14210703"]
[WhiteElo "2603"]
[BlackElo "1747"]
[Result "0-1"]
[Round "02"]
[TimeControl "180+1"]
[Date "2021.07.13"]
[WhiteClock "0:00:01"]
[BlackClock "0:00:15"]

1. e4 {[%clk 0:03:00]}  e5 {[%clk 0:03:00]} 2. Bc4 {[%clk 0:02:59]}  Nf6 {[%clk 0:02:59]} 3. d3 {[%clk 0:02:59]}  Nc6 {[%clk 0:02:58]} 4. Nf3 {[%clk 0:02:58]}  h6 {[%clk 0:02:54]} 5. c3 {[%clk 0:02:56]}  d6 {[%clk 0:02:54]} 6. Nbd2 {[%clk 0:02:55]}  g5 {[%clk 0:02:53]} 7. b4 {[%clk 0:02:47]}  Bg7 {[%clk 0:02:53]} 8. Qb3 {[%clk 0:02:44]}  O-O {[%clk 0:02:52]} 9. a4 {[%clk 0:02:43]}  Ne7 {[%clk 0:02:50]} 10. Nf1 {[%clk 0:02:22]}  c6 {[%clk 0:02:50]} 11. Qc2 {[%clk 0:02:22]}  Ng6 {[%clk 0:02:43]} 12. h3 {[%clk 0:02:18]}  d5 {[%clk 0:02:42]} 13. Bb3 {[%clk 0:02:17]}  Be6 {[%clk 0:02:34]} 14. Ng3 {[%clk 0:02:16]}  Qd7 {[%clk 0:02:32]} 15. a5 {[%clk 0:02:09]}  Rad8 {[%clk 0:02:31]} 16. Be3 {[%clk 0:01:58]}  a6 {[%clk 0:02:16]} 17. O-O-O {[%clk 0:01:55]}  Rfe8 {[%clk 0:02:15]} 18. Bb6 {[%clk 0:01:50]}  Rc8 {[%clk 0:02:15]} 19. Rhe1 {[%clk 0:01:49]}  Kh8 {[%clk 0:01:58]} 20. d4 {[%clk 0:01:47]}  dxe4 {[%clk 0:01:52]} 21. dxe5 {[%clk 0:01:28]}  Bxb3 {[%clk 0:01:33]} 22. Rxd7 {[%clk 0:00:53]}  Nxd7 {[%clk 0:01:34]} 23. Qxb3 {[%clk 0:00:52]}  exf3 {[%clk 0:01:34]} 24. gxf3 {[%clk 0:00:50]}  Ndxe5 {[%clk 0:01:33]} 25. Re3 {[%clk 0:00:49]}  Nf4 {[%clk 0:01:25]} 26. Nf5 {[%clk 0:00:49]}  Nd5 {[%clk 0:01:24]} 27. Nd6 {[%clk 0:00:41]}  Nxe3 {[%clk 0:01:20]} 28. Bxe3 {[%clk 0:00:40]}  Rcd8 {[%clk 0:01:14]} 29. Nxe8 {[%clk 0:00:39]}  Rxe8 {[%clk 0:01:13]} 30. Kc2 {[%clk 0:00:36]}  Re7 {[%clk 0:01:09]} 31. f4 {[%clk 0:00:36]}  gxf4 {[%clk 0:01:07]} 32. Bxf4 {[%clk 0:00:36]}  Rd7 {[%clk 0:01:05]} 33. Bxe5 {[%clk 0:00:29]}  Bxe5 {[%clk 0:01:06]} 34. Qc4 {[%clk 0:00:30]}  Re7 {[%clk 0:00:59]} 35. Qh4 {[%clk 0:00:29]}  Re6 {[%clk 0:00:54]} 36. Qd8+ {[%clk 0:00:28]}  Kg7 {[%clk 0:00:54]} 37. Qd7 {[%clk 0:00:28]}  Rf6 {[%clk 0:00:53]} 38. f3 {[%clk 0:00:24]}  c5 {[%clk 0:00:30]} 39. Qxb7 {[%clk 0:00:20]}  cxb4 {[%clk 0:00:28]} 40. cxb4 {[%clk 0:00:20]}  h5 {[%clk 0:00:28]} 41. Qe4 {[%clk 0:00:17]}  Bf4 {[%clk 0:00:26]} 42. Kb3 {[%clk 0:00:16]}  Kh6 {[%clk 0:00:25]} 43. Qb7 {[%clk 0:00:14]}  Kg5 {[%clk 0:00:24]} 44. b5 {[%clk 0:00:14]}  axb5 {[%clk 0:00:25]} 45. a6 {[%clk 0:00:13]}  Be3 {[%clk 0:00:24]} 46. a7 {[%clk 0:00:09]}  Bxa7 {[%clk 0:00:23]} 47. Qxa7 {[%clk 0:00:09]}  Rxf3+ {[%clk 0:00:24]} 48. Kb4 {[%clk 0:00:09]}  Rf5 {[%clk 0:00:23]} 49. Qe3+ {[%clk 0:00:07]}  Kg6 {[%clk 0:00:23]} 50. Qe4 {[%clk 0:00:07]}  Kf6 {[%clk 0:00:20]} 51. Ka5 {[%clk 0:00:06]}  Re5 {[%clk 0:00:19]} 52. Qf4+ {[%clk 0:00:05]}  Ke6 {[%clk 0:00:19]} 53. Qh6+ {[%clk 0:00:05]}  f6 {[%clk 0:00:20]} 54. Kb6 {[%clk 0:00:05]}  Rg5 {[%clk 0:00:20]} 55. Qh8 {[%clk 0:00:04]}  Re5 {[%clk 0:00:19]} 56. Kc6 {[%clk 0:00:04]}  b4 {[%clk 0:00:14]} 57. Qe8+ {[%clk 0:00:01]}  Kf5 {[%clk 0:00:14]} 58. Qxh5+ {[%clk 0:00:01]}  Ke4 {[%clk 0:00:15]} 0-1


[Site "https://www.chess.com"]

[Event "Titled Tuesday Blitz July 13 2021"]
[White "Ozen, Bahadir"]
[Black "Storme, Isak"]
[WhiteFideId "6337058"]
[BlackFideId "1728113"]
[WhiteElo "2503"]
[BlackElo "2037"]
[Result "1-0"]
[Round "02"]
[TimeControl "180+1"]
[Date "2021.07.13"]
[WhiteClock "0:01:57"]
[BlackClock "0:01:46"]

1. Nf3 {[%clk 0:03:00]}  d5 {[%clk 0:02:57]} 2. b3 {[%clk 0:02:59]}  Nf6 {[%clk 0:02:53]} 3. Bb2 {[%clk 0:02:58]}  c5 {[%clk 0:02:53]} 4. e3 {[%clk 0:02:58]}  Nc6 {[%clk 0:02:53]} 5. Bb5 {[%clk 0:02:58]}  Qb6 {[%clk 0:02:51]} 6. c4 {[%clk 0:02:49]}  a6 {[%clk 0:02:46]} 7. cxd5 {[%clk 0:02:38]}  axb5 {[%clk 0:02:31]} 8. dxc6 {[%clk 0:02:38]}  bxc6 {[%clk 0:02:30]} 9. O-O {[%clk 0:02:37]}  Bg4 {[%clk 0:02:29]} 10. d4 {[%clk 0:02:08]}  e6 {[%clk 0:02:23]} 11. Nbd2 {[%clk 0:02:07]}  Be7 {[%clk 0:02:17]} 12. dxc5 {[%clk 0:02:06]}  Bxc5 {[%clk 0:02:15]} 13. Qc2 {[%clk 0:02:01]}  Be7 {[%clk 0:02:14]} 14. Ne5 {[%clk 0:01:59]}  c5 {[%clk 0:02:01]} 15. Nxg4 {[%clk 0:01:58]}  Nxg4 {[%clk 0:02:01]} 16. Qe4 {[%clk 0:01:58]}  Nf6 {[%clk 0:01:46]} 17. Qxa8+ {[%clk 0:01:57]} 1-0


[Site "https://www.chess.com"]

[Event "Titled Tuesday Blitz July 13 2021"]
[White "Papasimakopoulos, Alexandros"]
[Black "Markidis, Konstantinos"]
[WhiteFideId "4244125"]
[BlackFideId "4203500"]
[WhiteElo "2352"]
[BlackElo "2304"]
[Result "0-1"]
[Round "02"]
[TimeControl "180+1"]
[Date "2021.07.13"]
[WhiteClock "0:00:34"]
[BlackClock "0:00:16"]

1. d4 {[%clk 0:03:00]}  Nf6 {[%clk 0:02:59]} 2. c4 {[%clk 0:02:45]}  e6 {[%clk 0:02:59]} 3. Nc3 {[%clk 0:02:44]}  Bb4 {[%clk 0:02:59]} 4. Qc2 {[%clk 0:02:44]}  O-O {[%clk 0:02:56]} 5. a3 {[%clk 0:02:44]}  Bxc3+ {[%clk 0:02:56]} 6. Qxc3 {[%clk 0:02:45]}  d6 {[%clk 0:02:54]} 7. f3 {[%clk 0:02:45]}  e5 {[%clk 0:02:45]} 8. d5 {[%clk 0:02:44]}  a5 {[%clk 0:02:41]} 9. b3 {[%clk 0:02:41]}  Na6 {[%clk 0:02:40]} 10. e4 {[%clk 0:02:41]}  Nc5 {[%clk 0:02:40]} 11. Be3 {[%clk 0:02:38]}  b6 {[%clk 0:02:14]} 12. Ne2 {[%clk 0:02:35]}  Bd7 {[%clk 0:02:11]} 13. a4 {[%clk 0:02:27]}  Ne8 {[%clk 0:02:01]} 14. g4 {[%clk 0:02:25]}  c6 {[%clk 0:01:45]} 15. dxc6 {[%clk 0:02:22]}  Bxc6 {[%clk 0:01:45]} 16. Bg2 {[%clk 0:02:10]}  Nc7 {[%clk 0:01:32]} 17. h4 {[%clk 0:02:01]}  N7e6 {[%clk 0:01:31]} 18. Rd1 {[%clk 0:01:34]}  Qc7 {[%clk 0:01:20]} 19. Bh3 {[%clk 0:01:29]}  Na6 {[%clk 0:01:08]} 20. Ng3 {[%clk 0:01:20]}  Nb4 {[%clk 0:01:04]} 21. Nf5 {[%clk 0:01:19]}  Rad8 {[%clk 0:01:03]} 22. g5 {[%clk 0:01:11]}  Nc5 {[%clk 0:01:00]} 23. h5 {[%clk 0:01:06]}  Nxe4 {[%clk 0:00:34]} 24. fxe4 {[%clk 0:01:05]}  Bxe4 {[%clk 0:00:34]} 25. O-O {[%clk 0:00:58]}  Ba8 {[%clk 0:00:26]} 26. Rd2 {[%clk 0:00:56]}  d5 {[%clk 0:00:23]} 27. Bf4 {[%clk 0:00:38]}  d4 {[%clk 0:00:20]} 28. Nxd4 {[%clk 0:00:38]}  Qb7 {[%clk 0:00:18]} 29. Bg2 {[%clk 0:00:38]}  exd4 {[%clk 0:00:18]} 30. Bxb7 {[%clk 0:00:38]}  dxc3 {[%clk 0:00:18]} 31. Rxd8 {[%clk 0:00:38]}  Rxd8 {[%clk 0:00:17]} 32. Bxa8 {[%clk 0:00:36]}  Rxa8 {[%clk 0:00:17]} 33. Rc1 {[%clk 0:00:36]}  c2 {[%clk 0:00:17]} 34. Kf2 {[%clk 0:00:34]}  Rd8 {[%clk 0:00:17]} 35. Ke2 {[%clk 0:00:35]}  Nd3 {[%clk 0:00:16]} 36. Rxc2 {[%clk 0:00:34]}  Nxf4+ {[%clk 0:00:16]} 37. Kf3 {[%clk 0:00:35]}  Ne6 {[%clk 0:00:16]} 38. g6 {[%clk 0:00:35]}  Nd4+ {[%clk 0:00:16]} 39. Ke4 {[%clk 0:00:34]} 0-1


[Site "https://www.chess.com"]

[Event "Titled Tuesday Blitz July 13 2021"]
[White "Patrascu, Catalin-Lucian"]
[Black "Zubritskiy, Artyom"]
[WhiteFideId "1229052"]
[BlackFideId "4181247"]
[WhiteElo "2120"]
[BlackElo "2559"]
[Result "0-1"]
[Round "02"]
[TimeControl "180+1"]
[Date "2021.07.13"]
[WhiteClock "0:00:01"]
[BlackClock "0:00:21"]

1. e4 {[%clk 0:03:00]}  c5 {[%clk 0:02:59]} 2. Nf3 {[%clk 0:02:59]}  d6 {[%clk 0:02:59]} 3. Bb5+ {[%clk 0:02:58]}  Bd7 {[%clk 0:02:55]} 4. Bxd7+ {[%clk 0:02:57]}  Qxd7 {[%clk 0:02:56]} 5. c4 {[%clk 0:02:56]}  g6 {[%clk 0:02:55]} 6. d4 {[%clk 0:02:54]}  cxd4 {[%clk 0:02:55]} 7. Nxd4 {[%clk 0:02:55]}  Bg7 {[%clk 0:02:55]} 8. Nc3 {[%clk 0:02:55]}  Nc6 {[%clk 0:02:54]} 9. Be3 {[%clk 0:02:56]}  Nf6 {[%clk 0:02:53]} 10. f3 {[%clk 0:02:55]}  O-O {[%clk 0:02:53]} 11. O-O {[%clk 0:02:49]}  Rac8 {[%clk 0:02:52]} 12. Rc1 {[%clk 0:02:44]}  Nxd4 {[%clk 0:02:48]} 13. Qxd4 {[%clk 0:02:10]}  Ng4 {[%clk 0:02:43]} 14. Qxa7 {[%clk 0:02:10]}  Nxe3 {[%clk 0:02:07]} 15. Qxe3 {[%clk 0:02:08]}  Rxc4 {[%clk 0:02:07]} 16. Nd5 {[%clk 0:02:02]}  Bd4 {[%clk 0:02:05]} 17. Rxc4 {[%clk 0:01:53]}  Bxe3+ {[%clk 0:02:05]} 18. Nxe3 {[%clk 0:01:54]}  Qb5 {[%clk 0:02:01]} 19. b3 {[%clk 0:01:45]}  Qb6 {[%clk 0:01:58]} 20. Re1 {[%clk 0:01:17]}  Ra8 {[%clk 0:01:44]} 21. Rc2 {[%clk 0:01:10]}  Qd4 {[%clk 0:01:24]} 22. Kf2 {[%clk 0:00:57]}  f5 {[%clk 0:01:08]} 23. Rd1 {[%clk 0:00:39]}  Qb6 {[%clk 0:01:06]} 24. Ke2 {[%clk 0:00:19]}  fxe4 {[%clk 0:01:03]} 25. fxe4 {[%clk 0:00:20]}  Rf8 {[%clk 0:00:58]} 26. Rf1 {[%clk 0:00:15]}  Qa6+ {[%clk 0:00:44]} 27. Ke1 {[%clk 0:00:11]}  Qd3 {[%clk 0:00:34]} 28. Rxf8+ {[%clk 0:00:10]}  Kxf8 {[%clk 0:00:35]} 29. Re2 {[%clk 0:00:05]}  Qxe4 {[%clk 0:00:33]} 30. Kf2 {[%clk 0:00:03]}  Qd4 {[%clk 0:00:31]} 31. Ke1 {[%clk 0:00:02]}  b5 {[%clk 0:00:30]} 32. Nc2 {[%clk 0:00:02]}  Qb2 {[%clk 0:00:23]} 33. a4 {[%clk 0:00:01]}  Qxb3 {[%clk 0:00:21]} 34. a5 {[%clk 0:00:01]}  Qc3+ {[%clk 0:00:21]} 0-1


[Site "https://www.chess.com"]

[Event "Titled Tuesday Blitz July 13 2021"]
[White "Pelopidass"]
[Black "Timofeev, Artyom"]
[BlackFideId "4140419"]
[WhiteElo "2535"]
[BlackElo "2582"]
[Result "1-0"]
[Round "02"]
[TimeControl "180+1"]
[Date "2021.07.13"]
[WhiteClock "0:00:08"]
[BlackClock "0:00:18"]

1. d4 {[%clk 0:03:00]}  Nf6 {[%clk 0:02:59]} 2. Nf3 {[%clk 0:03:01]}  g6 {[%clk 0:02:58]} 3. g3 {[%clk 0:03:01]}  b6 {[%clk 0:02:57]} 4. Bg2 {[%clk 0:03:01]}  Bb7 {[%clk 0:02:57]} 5. O-O {[%clk 0:03:01]}  Bg7 {[%clk 0:02:58]} 6. c4 {[%clk 0:03:01]}  O-O {[%clk 0:02:57]} 7. Nc3 {[%clk 0:03:02]}  Ne4 {[%clk 0:02:57]} 8. Qc2 {[%clk 0:02:59]}  Nxc3 {[%clk 0:02:55]} 9. Qxc3 {[%clk 0:03:00]}  Nc6 {[%clk 0:02:54]} 10. Rd1 {[%clk 0:02:56]}  d6 {[%clk 0:02:52]} 11. Qc2 {[%clk 0:02:50]}  Qc8 {[%clk 0:02:49]} 12. e4 {[%clk 0:02:46]}  e5 {[%clk 0:02:46]} 13. d5 {[%clk 0:02:43]}  Nd4 {[%clk 0:02:46]} 14. Nxd4 {[%clk 0:02:43]}  exd4 {[%clk 0:02:46]} 15. Bf4 {[%clk 0:02:21]}  Qd7 {[%clk 0:02:45]} 16. h4 {[%clk 0:02:04]}  c5 {[%clk 0:02:45]} 17. dxc6 {[%clk 0:01:54]}  Bxc6 {[%clk 0:02:44]} 18. Qd3 {[%clk 0:01:49]}  Rfe8 {[%clk 0:02:43]} 19. Re1 {[%clk 0:01:48]}  b5 {[%clk 0:02:39]} 20. Rac1 {[%clk 0:01:40]}  bxc4 {[%clk 0:02:33]} 21. Qxc4 {[%clk 0:01:41]}  Rac8 {[%clk 0:02:33]} 22. Qb4 {[%clk 0:01:40]}  Be5 {[%clk 0:02:32]} 23. Bd2 {[%clk 0:01:34]}  Rb8 {[%clk 0:02:31]} 24. Qa3 {[%clk 0:01:33]}  Qb7 {[%clk 0:02:21]} 25. b3 {[%clk 0:01:29]}  d3 {[%clk 0:02:02]} 26. b4 {[%clk 0:01:21]}  Bb5 {[%clk 0:01:57]} 27. Qb3 {[%clk 0:01:20]}  Qa6 {[%clk 0:01:56]} 28. Bh3 {[%clk 0:01:16]}  Ba4 {[%clk 0:01:35]} 29. Qd5 {[%clk 0:01:07]}  Bc2 {[%clk 0:01:35]} 30. Bd7 {[%clk 0:00:32]}  Red8 {[%clk 0:01:29]} 31. Bc6 {[%clk 0:00:30]}  Bb2 {[%clk 0:01:19]} 32. b5 {[%clk 0:00:30]}  Qa3 {[%clk 0:01:18]} 33. Bg5 {[%clk 0:00:27]}  Rdc8 {[%clk 0:01:11]} 34. h5 {[%clk 0:00:27]}  Qc5 {[%clk 0:01:03]} 35. hxg6 {[%clk 0:00:20]}  hxg6 {[%clk 0:01:02]} 36. Kg2 {[%clk 0:00:18]}  Qxd5 {[%clk 0:01:01]} 37. exd5 {[%clk 0:00:18]}  f6 {[%clk 0:00:50]} 38. Bd2 {[%clk 0:00:18]}  Kf7 {[%clk 0:00:50]} 39. Rh1 {[%clk 0:00:17]}  Rh8 {[%clk 0:00:50]} 40. Rxh8 {[%clk 0:00:16]}  Rxh8 {[%clk 0:00:50]} 41. Re1 {[%clk 0:00:17]}  g5 {[%clk 0:00:39]} 42. Re4 {[%clk 0:00:17]}  Bc1 {[%clk 0:00:31]} 43. Bxc1 {[%clk 0:00:08]}  d2 {[%clk 0:00:31]} 44. Bxd2 {[%clk 0:00:09]}  Bxe4+ {[%clk 0:00:31]} 45. f3 {[%clk 0:00:10]}  Bd3 {[%clk 0:00:28]} 46. Be3 {[%clk 0:00:10]}  a6 {[%clk 0:00:26]} 47. b6 {[%clk 0:00:10]}  g4 {[%clk 0:00:22]} 48. b7 {[%clk 0:00:09]}  Be2 {[%clk 0:00:22]} 49. fxg4 {[%clk 0:00:08]}  Bxg4 {[%clk 0:00:22]} 50. Ba7 {[%clk 0:00:08]}  Be2 {[%clk 0:00:21]} 51. b8=Q {[%clk 0:00:08]}  Rxb8 {[%clk 0:00:21]} 52. Bxb8 {[%clk 0:00:08]}  Ke7 {[%clk 0:00:22]} 53. Ba7 {[%clk 0:00:09]}  Bc4 {[%clk 0:00:22]} 54. a3 {[%clk 0:00:09]}  Bb3 {[%clk 0:00:22]} 55. Bd4 {[%clk 0:00:10]}  f5 {[%clk 0:00:22]} 56. Kf3 {[%clk 0:00:10]}  Bc4 {[%clk 0:00:23]} 57. Kf4 {[%clk 0:00:10]}  Bd3 {[%clk 0:00:23]} 58. Bb7 {[%clk 0:00:10]}  Kf7 {[%clk 0:00:22]} 59. a4 {[%clk 0:00:09]}  Kg6 {[%clk 0:00:22]} 60. a5 {[%clk 0:00:09]}  Kf7 {[%clk 0:00:22]} 61. Bb6 {[%clk 0:00:09]}  Ke7 {[%clk 0:00:22]} 62. Bc6 {[%clk 0:00:10]}  Kf7 {[%clk 0:00:21]} 63. Ba4 {[%clk 0:00:10]}  Ke7 {[%clk 0:00:21]} 64. Bd1 {[%clk 0:00:10]}  Kf6 {[%clk 0:00:21]} 65. Bc7 {[%clk 0:00:09]}  Ke7 {[%clk 0:00:21]} 66. Bh5 {[%clk 0:00:09]}  Kd7 {[%clk 0:00:20]} 67. Bb6 {[%clk 0:00:08]}  Ke7 {[%clk 0:00:20]} 68. Bg6 {[%clk 0:00:08]}  Kf6 {[%clk 0:00:20]} 69. Bh7 {[%clk 0:00:08]}  Bc4 {[%clk 0:00:20]} 70. Bxf5 {[%clk 0:00:08]}  Bxd5 {[%clk 0:00:21]} 71. Bd3 {[%clk 0:00:08]}  Bb7 {[%clk 0:00:20]} 72. g4 {[%clk 0:00:09]}  d5 {[%clk 0:00:21]} 73. g5+ {[%clk 0:00:08]}  Ke6 {[%clk 0:00:21]} 74. Bd4 {[%clk 0:00:09]}  Kf7 {[%clk 0:00:19]} 75. g6+ {[%clk 0:00:10]}  Kg8 {[%clk 0:00:19]} 76. Ke5 {[%clk 0:00:10]}  Bc8 {[%clk 0:00:20]} 77. Kd6 {[%clk 0:00:10]}  Bf5 {[%clk 0:00:19]} 78. Bxf5 {[%clk 0:00:09]}  Kf8 {[%clk 0:00:18]} 79. Be6 {[%clk 0:00:08]}  Ke8 {[%clk 0:00:18]} 80. g7 {[%clk 0:00:08]} 1-0


[Site "https://www.chess.com"]

[Event "Titled Tuesday Blitz July 13 2021"]
[White "Peralta, Eduardo"]
[Black "Yoo, Christopher Woojin"]
[WhiteFideId "3700062"]
[BlackFideId "30909694"]
[WhiteElo "2205"]
[BlackElo "2105"]
[Result "0-1"]
[Round "02"]
[TimeControl "180+1"]
[Date "2021.07.13"]
[WhiteClock "0:00:01"]
[BlackClock "0:00:25"]

1. d4 {[%clk 0:03:00]}  Nf6 {[%clk 0:02:59]} 2. c4 {[%clk 0:03:00]}  e6 {[%clk 0:02:59]} 3. Nc3 {[%clk 0:02:58]}  Bb4 {[%clk 0:02:57]} 4. e3 {[%clk 0:02:58]}  O-O {[%clk 0:02:56]} 5. Bd3 {[%clk 0:02:55]}  c5 {[%clk 0:02:56]} 6. Nf3 {[%clk 0:02:55]}  d5 {[%clk 0:02:57]} 7. O-O {[%clk 0:02:54]}  Nc6 {[%clk 0:02:57]} 8. a3 {[%clk 0:02:53]}  Ba5 {[%clk 0:02:49]} 9. Na4 {[%clk 0:02:23]}  cxd4 {[%clk 0:02:40]} 10. exd4 {[%clk 0:02:23]}  dxc4 {[%clk 0:02:34]} 11. Bxc4 {[%clk 0:02:22]}  h6 {[%clk 0:02:30]} 12. b4 {[%clk 0:02:21]}  Bc7 {[%clk 0:02:28]} 13. Bb2 {[%clk 0:02:19]}  b6 {[%clk 0:02:24]} 14. Re1 {[%clk 0:02:00]}  Bb7 {[%clk 0:02:23]} 15. Nc3 {[%clk 0:01:57]}  Ne7 {[%clk 0:02:18]} 16. Ba2 {[%clk 0:01:54]}  Rc8 {[%clk 0:02:17]} 17. Qd3 {[%clk 0:01:53]}  Ned5 {[%clk 0:01:59]} 18. Ne2 {[%clk 0:01:52]}  Qd7 {[%clk 0:01:46]} 19. Ne5 {[%clk 0:01:49]}  Qd6 {[%clk 0:01:43]} 20. Rad1 {[%clk 0:01:45]}  Rfd8 {[%clk 0:01:36]} 21. Bb1 {[%clk 0:01:40]}  Ne7 {[%clk 0:01:33]} 22. Nf4 {[%clk 0:01:34]}  Nf5 {[%clk 0:01:13]} 23. Qh3 {[%clk 0:01:27]}  Nd5 {[%clk 0:01:06]} 24. Nxd5 {[%clk 0:01:16]}  Bxd5 {[%clk 0:01:01]} 25. g4 {[%clk 0:00:54]}  Ne7 {[%clk 0:00:59]} 26. g5 {[%clk 0:00:52]}  Nf5 {[%clk 0:00:52]} 27. Bxf5 {[%clk 0:00:19]}  exf5 {[%clk 0:00:48]} 28. Qxf5 {[%clk 0:00:19]}  hxg5 {[%clk 0:00:45]} 29. Rd3 {[%clk 0:00:07]}  Qf6 {[%clk 0:00:38]} 30. Qg4 {[%clk 0:00:02]}  Be6 {[%clk 0:00:34]} 31. Qg3 {[%clk 0:00:02]}  Qh6 {[%clk 0:00:28]} 32. Qe3 {[%clk 0:00:02]}  f6 {[%clk 0:00:26]} 33. d5 {[%clk 0:00:02]}  Bf5 {[%clk 0:00:26]} 34. Rd4 {[%clk 0:00:01]}  Bxe5 {[%clk 0:00:25]} 0-1


[Site "https://www.chess.com"]

[Event "Titled Tuesday Blitz July 13 2021"]
[White "Pourkashiyan, Atousa"]
[Black "Wagner, Dennis"]
[WhiteFideId "12502014"]
[BlackFideId "24650684"]
[WhiteElo "2285"]
[BlackElo "2355"]
[Result "0-1"]
[Round "02"]
[TimeControl "180+1"]
[Date "2021.07.13"]
[WhiteClock "0:00:02"]
[BlackClock "0:00:17"]

1. e4 {[%clk 0:03:00]}  c5 {[%clk 0:02:59]} 2. Nf3 {[%clk 0:03:00]}  d6 {[%clk 0:02:59]} 3. d4 {[%clk 0:03:00]}  cxd4 {[%clk 0:03:00]} 4. Nxd4 {[%clk 0:03:00]}  Nf6 {[%clk 0:03:01]} 5. Nc3 {[%clk 0:03:00]}  a6 {[%clk 0:03:01]} 6. Be2 {[%clk 0:03:01]}  e5 {[%clk 0:03:00]} 7. Nb3 {[%clk 0:03:01]}  Be7 {[%clk 0:03:01]} 8. O-O {[%clk 0:03:00]}  O-O {[%clk 0:03:02]} 9. Be3 {[%clk 0:03:01]}  Be6 {[%clk 0:03:01]} 10. Qd3 {[%clk 0:02:56]}  Nbd7 {[%clk 0:02:59]} 11. a4 {[%clk 0:02:54]}  Qc7 {[%clk 0:02:54]} 12. Rfd1 {[%clk 0:02:52]}  Rac8 {[%clk 0:02:45]} 13. a5 {[%clk 0:02:35]}  Qc6 {[%clk 0:02:44]} 14. f3 {[%clk 0:02:28]}  h6 {[%clk 0:02:40]} 15. Bf1 {[%clk 0:02:21]}  Rfd8 {[%clk 0:02:35]} 16. Rac1 {[%clk 0:02:10]}  Nc5 {[%clk 0:02:20]} 17. Nxc5 {[%clk 0:01:55]}  dxc5 {[%clk 0:02:21]} 18. Qe2 {[%clk 0:01:53]}  c4 {[%clk 0:02:07]} 19. Qf2 {[%clk 0:01:38]}  Bb4 {[%clk 0:01:48]} 20. Bb6 {[%clk 0:01:33]}  Rd7 {[%clk 0:01:35]} 21. Na2 {[%clk 0:01:02]}  Bc5 {[%clk 0:01:33]} 22. Bxc5 {[%clk 0:00:59]}  Qxc5 {[%clk 0:01:34]} 23. Qxc5 {[%clk 0:00:37]}  Rxc5 {[%clk 0:01:35]} 24. Rxd7 {[%clk 0:00:37]}  Nxd7 {[%clk 0:01:35]} 25. Rd1 {[%clk 0:00:27]}  Rxa5 {[%clk 0:01:34]} 26. Nc3 {[%clk 0:00:27]}  b5 {[%clk 0:01:18]} 27. Nd5 {[%clk 0:00:25]}  Kf8 {[%clk 0:01:11]} 28. Ne3 {[%clk 0:00:08]}  Ra2 {[%clk 0:01:08]} 29. Rb1 {[%clk 0:00:08]}  Nc5 {[%clk 0:01:03]} 30. Kf2 {[%clk 0:00:08]}  Na4 {[%clk 0:01:01]} 31. Nd1 {[%clk 0:00:06]}  c3 {[%clk 0:00:57]} 32. bxc3 {[%clk 0:00:02]}  Rxc2+ {[%clk 0:00:56]} 33. Ke3 {[%clk 0:00:02]}  Nxc3 {[%clk 0:00:52]} 34. Nxc3 {[%clk 0:00:03]}  Rxc3+ {[%clk 0:00:53]} 35. Kd2 {[%clk 0:00:03]}  Rc6 {[%clk 0:00:48]} 36. Ra1 {[%clk 0:00:03]}  Ke7 {[%clk 0:00:48]} 37. Ke3 {[%clk 0:00:03]}  f6 {[%clk 0:00:48]} 38. Bd3 {[%clk 0:00:04]}  Kd6 {[%clk 0:00:48]} 39. g3 {[%clk 0:00:04]}  Kc7 {[%clk 0:00:48]} 40. f4 {[%clk 0:00:05]}  Kb6 {[%clk 0:00:48]} 41. fxe5 {[%clk 0:00:05]}  fxe5 {[%clk 0:00:48]} 42. Rf1 {[%clk 0:00:06]}  a5 {[%clk 0:00:46]} 43. Rf8 {[%clk 0:00:06]}  Rc8 {[%clk 0:00:44]} 44. Rf1 {[%clk 0:00:04]}  b4 {[%clk 0:00:39]} 45. Rb1 {[%clk 0:00:04]}  Rc3 {[%clk 0:00:37]} 46. Kd2 {[%clk 0:00:04]}  Kc5 {[%clk 0:00:35]} 47. Rf1 {[%clk 0:00:04]}  Kd4 {[%clk 0:00:34]} 48. Be2 {[%clk 0:00:04]}  b3 {[%clk 0:00:33]} 49. Rf8 {[%clk 0:00:04]}  Rc2+ {[%clk 0:00:27]} 50. Kd1 {[%clk 0:00:04]}  a4 {[%clk 0:00:23]} 51. Ra8 {[%clk 0:00:03]}  Ke3 {[%clk 0:00:22]} 52. Bh5 {[%clk 0:00:03]}  Rd2+ {[%clk 0:00:18]} 53. Ke1 {[%clk 0:00:02]}  Ra2 {[%clk 0:00:17]} 0-1


[Site "https://www.chess.com"]